Cogmind - Beta 11 X8 @@@ ROGUE MODE // 2021.12.21 @ 16:50:31 Player: Plexion Result: Destroyed by as-71706 with Assembled Maul Performance ------------- Evolutions (0) 0 Regions Visited (4) 800 Robots Destroyed (35) 175 Value Destroyed (383) 383 Prototype IDs (26) 520 Alien Tech Used (0) 0 Bonus (321) 321 TOTAL SCORE: 2199 Bonus ------- Follower Combat Kills 21 Aligned with FarCom 300 Cogmind --------- Core Integrity 0/250 Matter 264/300 Energy 200/200 System Corruption 0% Temperature Cool (0) Movement Treading (240) Ox1 Location -9/Mines Parts ------- > --- POWER (1) -------- Cold Fusion Reactor > --- PROPULSION (2) --- Light Treads Light Treads > --- UTILITY (2) ------ Large Storage Unit Core Shielding > --- WEAPON (2) ------- Heavy Assault Rifle 8R-AWN's Boregun > --- INVENTORY (15) --- Heavy Deuterium Engine Light Treads Improved Treads Improved Treads Makeshift Hover Unit Makeshift Hover Unit Combat Antigrav System Improved Heat Sink Experimental Heat Sink Improved Target Analyzer Beam Cannon Heavy Assault Rifle Heavy Assault Rifle Heavy Assault Rifle Light Cannon Peak State ------------ > --- POWER ------------ Ion Engine > --- PROPULSION ------- Improved Treads Improved Treads > --- UTILITY ---------- Experimental Heat Sink Large Storage Unit > --- WEAPON ----------- AWS/Gauss > --- INVENTORY -------- Light Treads Light Treads Light Treads Improved Treads Improved Treads Improved Heat Sink Core Shielding Guided Plasma Cannon Heavy Assault Rifle Heavy Assault Rifle Heavy Assault Rifle Heavy Assault Rifle 8R-AWN's Boregun [Rating: 32] Favorites ----------- Power Ion Engine Engine Ion Engine Reactor Cold Fusion Reactor Propulsion Improved Treads Treads Improved Treads Utility Core Shielding Device Improved Heat Sink Storage Large Storage Unit Processor Salvage Targeting Computer Protection Core Shielding Weapon Light Cannon Energy Gun Medium Laser Ballistic Gun Heavy Assault Rifle Ballistic Cannon Light Cannon Build | -11 -10 -10 -10 -9 ------- Run | Scr Mat Min Exi Min Slots Evolved . | . . . . . Power . | . . . . . Propulsion . | . . . . . Utility . | . . . . . Weapon . | . . . . . Parts Attached 30 | 6 7 . 17 . Power 3 | 1 1 . 1 . Engine 2 | 1 1 . . . Core . | . . . . . Reactor 1 | . . . 1 . Propulsion 7 | 2 2 . 3 . Treads 7 | 2 2 . 3 . Leg . | . . . . . Wheel . | . . . . . Hover . | . . . . . Flight . | . . . . . Utility 8 | 1 2 . 5 . Device 2 | . . . 2 . Storage 2 | 1 1 . . . Processor 1 | . . . 1 . Hackware . | . . . . . Protection 3 | . 1 . 2 . Artifact . | . . . . . Weapon 12 | 2 2 . 8 . Energy Gun 1 | 1 . . . . Energy Cannon . | . . . . . Ballistic Gun 9 | 1 . . 8 . Ballistic Cannon 2 | . 2 . . . Launcher . | . . . . . Special Weapon . | . . . . . Impact Weapon . | . . . . . Slashing Weapon . | . . . . . Piercing Weapon . | . . . . . Special Melee Weapon . | . . . . . Unidentified Prototypes 3 | . . . 3 . Parts Lost 4 | . . . 4 . Power 1 | . . . 1 . Propulsion 2 | . . . 2 . Utility . | . . . . . Weapon 1 | . . . 1 . Highest Loss Streak 4 | . . . 4 . Average Slot Usage (%) 96 | . 95 100 93 100 Engine 11 | . 14 14 9 . Reactor 1 | . . . 2 14 Treads 27 | . 28 28 27 28 Storage 14 | . 14 14 14 14 Protection 12 | . 10 14 13 14 Ballistic Gun 8 | . 1 . 15 28 Ballistic Cannon 18 | . 25 28 8 . Naked Turns . | . . . . . Heaviest Build 42 | 11 32 32 42 42 Greatest Support 46 | 40 46 46 46 40 Greatest Overweight (x) 1 | . . . 1 1 Average Overweight (x) . | . . . . 1 Largest Inventory Capacity 15 | 8 15 15 15 15 Average Capacity 14 | 7 12 15 15 15 Most Carried 15 | 4 13 14 15 15 Average Carried 12 | 1 8 13 12 15 Final Capacity 15 | 8 15 15 15 15 Final Carried 15 | 4 13 14 15 15 Class Distribution -------------------- 100% | Mutant Dominant Class ---------------- Mutant | -10/Materials Mutant | -10/Mines Mutant | -10/Exiles Mutant | -9/Mines Resources | -11 -10 -10 -10 -9 ----------- Run | Scr Mat Min Exi Min Matter Collected 1098 | 218 293 104 452 31 Remotely . | . . . . . Salvage Created 966 | . 384 120 460 2 Parts 116 | . 22 18 76 . Haulers Intercepted 1 | . 1 . . . Recyclers Shooed . | . . . . . Parts Field Recycled . | . . . . . Retrieved Matter . | . . . . . Parts Self-Destructed . | . . . . . Prevented . | . . . . . Kills | -11 -10 -10 -10 -9 ------- Run | Scr Mat Min Exi Min Combat Hostiles Destroyed 17 | . 8 6 2 1 Guns 4 | . 1 . 2 1 Cannons 13 | . 7 6 . . Classes Destroyed 11 | . 6 1 3 1 Worker 3 | . 1 2 . . Builder 1 | . . 1 . . Hauler 1 | . 1 . . . Recycler 2 | . 2 . . . Turret 1 | . . . 1 . Watcher 1 | . 1 . . . Swarmer 12 | . 6 6 . . Grunt 2 | . 2 . . . Demolisher 1 | . . . . 1 Zionite 8 | . . . 8 . Assembled 1 | . . . 1 . Best Kill Streak 7 | . 4 3 7 1 Combat Bots Only 3 | . 3 3 1 1 Max Kills in Single Turn 2 | . 1 1 2 1 Gunslinging . | . . . . . Exploded . | . . . . . Melee . | . . . . . Uniques/NPCs Destroyed 4 | . . . 4 . 8R-AWN (-10/Exiles) EX-DEC (-10/Exiles) EX-HEX (-10/Exiles) EX-BIN (-10/Exiles) Combat | -11 -10 -10 -10 -9 -------- Run | Scr Mat Min Exi Min Damage Taken 1502 | . 192 96 1075 139 Core 250 | . 37 8 193 12 Absorbed by Shields . | . . . . . Core Remaining (%) 100 | 100 . . . . Volleys Fired 81 | 1 26 13 39 2 Largest 2 | 2 2 2 2 2 Hottest 70 | 70 70 70 53 53 Shots Fired 228 | 2 52 26 144 4 Gun 158 | 2 8 . 144 4 Cannon 70 | . 44 26 . . Launcher . | . . . . . Special . | . . . . . Kinetic 223 | 1 48 26 144 4 Thermal 5 | 1 4 . . . Explosive . | . . . . . Electromagnetic . | . . . . . Robot Hit Streak 36 | 1 5 5 36 1 Robot Miss Streak 4 | 1 4 2 3 1 Penetration Max 1 | . . . 1 . Secondary Targets . | . . . . . Autonomous 68 | . . . 68 . Shots Hit Robots 149 | 1 26 14 106 2 Core Hits 54 | . 14 8 31 1 Critical Kills 2 | . . . 1 1 Critical Parts Destroyed 7 | . . . 6 1 Critical Strikes 10 | . . 1 7 2 Destroy 9 | . . . 7 2 Blast 1 | . . 1 . . Melee Attacks . | . . . . . Impact . | . . . . . Slashing . | . . . . . Piercing . | . . . . . Sneak Attacks . | . . . . . Combat Hostiles . | . . . . . Follow-up Attacks . | . . . . . Damage Inflicted 3146 | 7 433 248 2409 49 Guns 2509 | 7 44 . 2409 49 Cannons 633 | . 389 244 . . Explosions . | . . . . . Melee . | . . . . . Ramming 4 | . . 4 . . Kinetic 3117 | 7 408 244 2409 49 Thermal 25 | . 25 . . . Explosive . | . . . . . Electromagnetic . | . . . . . Impact . | . . . . . Slashing . | . . . . . Piercing . | . . . . . Highest Corruption . | . . . . . Average Corruption . | . . . . . Corruption Purged . | . . . . . Overload Shots . | . . . . . Overflow Damage . | . . . . . Projectiles . | . . . . . Explosions . | . . . . . Melee . | . . . . . Knockbacks 7 | . 4 3 . . Impact . | . . . . . Kinetic 7 | . 4 3 . . Secondary . | . . . . . Self-Inflicted Damage . | . . . . . Shots . | . . . . . Rammed 1 | . . 1 . . Targets Rammed 1 | . . 1 . . Kicked . | . . . . . Crushed . | . . . . . Highest Temperature 78 | 20 78 36 . . Average Temperature 20 | 15 24 11 . . Received Heat Transfer 30 | . 30 . . . Siege Activations . | . . . . . Robots Corrupted . | . . . . . Combat Hostiles . | . . . . . Parts Fried . | . . . . . Impact Corruptions . | . . . . . Robots Melted . | . . . . . Combat Hostiles . | . . . . . Parts Melted . | . . . . . Heat Transferred 74 | . 74 . . . Parts Sabotaged . | . . . . . Parts Stolen . | . . . . . Parts Stripped . | . . . . . Power Chain Reactions . | . . . . . Missiles Intercepted . | . . . . . Alert | -11 -10 -10 -10 -9 ------- Run | Scr Mat Min Exi Min Peak Influence 152 | . 152 99 . 35 Initial . | . . . . . Average 72 | . 94 70 . 5 Maximum Alert Level . | . . . . . Low Security (%) 100 | 100 100 100 . 100 Level 1 . | . . . . . Level 2 . | . . . . . Level 3 . | . . . . . Level 4 . | . . . . . Level 5 . | . . . . . High Security . | . . . . . Max Security . | . . . . . Squads Dispatched 1 | . 1 . . . Investigation . | . . . . . Extermination . | . . . . . Reinforcement 1 | . 1 . . . Assault . | . . . . . Garrison . | . . . . . Intercept . | . . . . . Construction Impeded . | . . . . . Haulers Reinforced . | . . . . . Active Scanning Responses . | . . . . . Cargo Convoy Interrupts . | . . . . . Stealth | -11 -10 -10 -10 -9 --------- Run | Scr Mat Min Exi Min Distress Signals 1 | . 1 . . . Communications Jammed . | . . . . . Distress Signals . | . . . . . Times Spotted 44 | . 14 9 19 2 Peak Tracking Total 9 | . 4 3 9 1 Tactical Retreats 4 | . 1 . 3 . Traps | -11 -10 -10 -10 -9 ------- Run | Scr Mat Min Exi Min Traps Triggered . | . . . . . Indirectly . | . . . . . Trap Hack Attempts . | . . . . . Triggered . | . . . . . Disarmed . | . . . . . Reprogrammed . | . . . . . Reused . | . . . . . Traps Extracted . | . . . . . Installed . | . . . . . Triggered . | . . . . . Exploded 3 | . . . 3 . Machines | -11 -10 -10 -10 -9 ---------- Run | Scr Mat Min Exi Min Machines Disabled 14 | . 1 1 12 . Max in Single Turn 2 | . 1 1 2 . Machines Sabotaged . | . . . . . Garrisons Compromised . | . . . . . Overloaded Fab Kills . | . . . . . Hacking | -11 -10 -10 -10 -9 --------- Run | Scr Mat Min Exi Min Machines Accessed 3 | . 1 . 2 . Terminals 1 | . 1 . . . Fabricators . | . . . . . Repair Stations . | . . . . . Recycling Units . | . . . . . Scanalyzers . | . . . . . Garrison Access . | . . . . . Total Hacks 3 | . 1 . 2 . Successful 2 | . . . 2 . Failed 1 | . 1 . . . Catastrophic 1 | . 1 . . . Database Lockouts . | . . . . . Manual 2 | . 1 . 1 . Terminals 1 | . 1 . . . Fabricators . | . . . . . Repair Stations . | . . . . . Recycling Units . | . . . . . Scanalyzers . | . . . . . Garrison Access . | . . . . . Terminal Hacks 2 | . . . 2 . Record 1 | . . . 1 . EX-Prototype ID Bank 1 | . . . 1 . Fabricator Hacks . | . . . . . Repair Station Hacks . | . . . . . Recycling Unit Hacks . | . . . . . Scanalyzer . | . . . . . Garrison Access Hacks . | . . . . . Unauthorized Hacks . | . . . . . Terminals . | . . . . . Fabricators . | . . . . . Repair Stations . | . . . . . Recycling Units . | . . . . . Scanalyzers . | . . . . . Garrison Access . | . . . . . Data Cores Recovered . | . . . . . Used . | . . . . . Hacking Detections 1 | . 1 . . . Full Trace Events . | . . . . . Feedback Events . | . . . . . Feedback Blocked . | . . . . . Robot Schematics Acquired . | . . . . . Robots Built . | . . . . . Authchips . | . . . . . Time . | . . . . . Total Robot Build Rating . | . . . . . Part Schematics Acquired . | . . . . . Parts Built . | . . . . . Authchips . | . . . . . Time . | . . . . . Total Part Build Rating . | . . . . . Parts Repaired . | . . . . . Time . | . . . . . Parts Recycled . | . . . . . Recycled Matter . | . . . . . Retrieved Matter . | . . . . . Retrieved Components . | . . . . . Parts Scanalyzed . | . . . . . Part Schematics Acquired . | . . . . . Parts Damaged . | . . . . . Bothacking | -11 -10 -10 -10 -9 ------------ Run | Scr Mat Min Exi Min Used RIF Installer . | . . . . . Robots Hacked . | . . . . . Non-combat . | . . . . . Combat . | . . . . . Robot Hacks Applied . | . . . . . Relay Couplers Released . | . . . . . Fabnet Peak Effective % . | . . . . . Robots Rewired . | . . . . . Allies Hacked . | . . . . . Hacks Repelled . | . . . . . Allies | -11 -10 -10 -10 -9 -------- Run | Scr Mat Min Exi Min Total Allies 4 | . . 4 . . Largest Group 3 | . . 3 1 . Highest-Rated Group 47 | . . 47 16 . Highest-Rated Ally 31 | . . 31 16 . Total Orders 4 | . . . 4 . STAY 4 | . . . 4 . Ally Attacks 10 | . . 10 . . Total Damage 60 | . . 60 . . Kills 3 | . . 3 . . Allies Corrupted . | . . . . . Allies Melted . | . . . . . Intel | -11 -10 -10 -10 -9 ------- Run | Scr Mat Min Exi Min Robot Analysis Total . | . . . . . Derelict Logs Recovered 3 | . . 2 . 1 Drone Launches . | . . . . . Drone Recoveries . | . . . . . Exploration | -11 -10 -10 -10 -9 ------------- Run | Scr Mat Min Exi Min Turns Passed 4008 | 81 856 1209 1695 167 Spaces Moved 2170 | 43 468 730 862 67 Core 2 | 2 . . . . Treads 2168 | 41 468 730 862 67 Legs . | . . . . . Wheels . | . . . . . Hover . | . . . . . Flight . | . . . . . Fastest Speed 50 | 50 160 160 160 240 Average Speed 167 | 154 160 160 172 240 Slowest Speed 240 | 160 160 160 240 240 Overloaded Moves . | . . . . . Propulsion Burnouts . | . . . . . Robots Hopped . | . . . . . Cave-ins Triggered . | . . . . . Exploration Rate (%) 55 | 3 75 98 89 13 Regions Visited 4 Branch Regions 3 Pre-discovered Areas 1 | . . . 1 . Known Exits Taken . | . . . . . Unknown Exits Taken 4 | 1 1 1 1 . Scrap Searched 2 | . . 1 . 1 Spaces Dug . | . . . . . Terrain Destroyed 39 | . . . 38 1 Melee . | . . . . . Projectile 39 | . . . 38 1 AOE . | . . . . . Terrain Rammed . | . . . . . Walls Destroyed . | . . . . . Machines Disabled . | . . . . . Actions | -11 -10 -10 -10 -9 --------- Run | Scr Mat Min Exi Min Total 2392 | 53 526 745 999 69 Wait 54 | . 2 1 51 . Move 2166 | 42 467 729 861 67 Hop . | . . . . . Pick Up 36 | 4 15 1 16 . Fast Attach 8 | 6 1 . 1 . Attach 8 | . . . 8 . Detach 4 | . . . 4 . Swap 14 | . 6 . 8 . Drop 20 | . 9 . 11 . Fire 81 | 1 26 13 39 2 Melee . | . . . . . Ram . | . . . . . Kick . | . . . . . Crush 1 | . . 1 . . Escape Stasis . | . . . . . Rewire . | . . . . . Trap . | . . . . . Miscellaneous . | . . . . . Route ------- -11/Scrapyard -10/Materials (discovered 3 exits: [*Mat x2] / [*Min]) -10/Mines (discovered 3 exits: [*Mat x2] / *Exi) -10/Exiles -9/Mines (discovered 1 exit: Mat) History --------- Turn | Location | Event 9 | -11/Scrapyard | Discovered new exit (range 15) 82 | -11/Scrapyard | Entered Materials 199 | -10/Materials | Discovered new exit (range 15) 306 | -10/Materials | Build established: Mutant 393 | -10/Materials | Discovered new exit (range 16) 804 | -10/Materials | Discovered new exit (range 16) 938 | -10/Materials | Entered Mines 1005 | -10/Mines | Learned 8 Materials zone layouts 1102 | -10/Mines | Assisted by bots powering up and referring to "LRC-V3" 1203 | -10/Mines | Deemed a non-threat by the Exiles lab entrance 1203 | -10/Mines | Discovered new exit (range 5) 1516 | -10/Mines | Received a Mining Laser from a helpful Derelict 1763 | -10/Mines | Learned location of 1 exit from Materials 1825 | -10/Mines | Discovered new exit (range 6) 1933 | -10/Mines | Discovered new exit (range 12) 2147 | -10/Mines | Entered Exiles 2147 | -10/Exiles | Accompanied by 1 ally 2186 | -10/Exiles | Met 8R-AWN 2213 | -10/Exiles | Met EX-HEX 2288 | -10/Exiles | Met EX-DEC 2320 | -10/Exiles | Learned location of Zion (-6) 2439 | -10/Exiles | Met EX-BIN 2461 | -10/Exiles | Aligned with FarCom system 2463 | -10/Exiles | Given EX-Vault access code 2504 | -10/Exiles | Opened EX-Vault 2516 | -10/Exiles | Found AWS/Gauss 2521 | -10/Exiles | Found Gui. Plasma Cannon 2554 | -10/Exiles | Warned to stay clear of 0b10 Research branches 2677 | -10/Exiles | Discovered new exit (range 12) 3089 | -10/Exiles | Attacked by the Exiles 3187 | -10/Exiles | Core integrity fell below 50% 3228 | -10/Exiles | Destroyed 8R-AWN 3231 | -10/Exiles | Found Prototype Ballistic Gun 3274 | -10/Exiles | Core integrity fell below 20% 3284 | -10/Exiles | Identified 8R-AWN's Boregun 3314 | -10/Exiles | Lost 4 parts (1p2n1w) 3423 | -10/Exiles | Destroyed EX-DEC 3475 | -10/Exiles | Destroyed EX-HEX 3489 | -10/Exiles | Destroyed EX-BIN 3842 | -10/Exiles | Entered Mines 3843 | -9/Mines | Assembled infested the area 3848 | -9/Mines | Assisted by a Guerilla fighting off Assembled 3878 | -9/Mines | Identified exit to Materials 4009 | -9/Mines | Destroyed by as-71706 with Assembled Maul Last Messages --------------- 03843_ ALERT: Infestation in the mines, dispatching Demolisher response squad. 03848_ A derelict emerges from the shadows: "You need to get out of here! I've been tracking a group of Assembled to figure out where they're coming from, and they're closing on this area, come on!" 03874_ Searching scrap... 03874_ Found Sml. Matter Pod. 03874_ Found Imp. Aluminum Leg. 03874_ Found 31 Matter. 03875_ Acquired 31 matter. 03878_ Acquired derelict log, extracted data. 03958_ HV Slug penetrates D-53 Grenadier. 03958_ D-53 Grenadier suffers critical hit (Destroy). 03958_ Destroyed Cmb. Airjet. 03958_ HV Slug penetrates Wall. 03961_ HV Slug penetrates D-53 Grenadier. 03961_ D-53 Grenadier suffers critical hit (Destroy). 03961_ D-53 Grenadier destroyed. 03961_ HV Slug penetrates Wall. 03971_ The unstable cave ceiling collapses. Map ----- +----------------------------------------------------+ | ?????????????????????????????????????????????????? | | ?????????????????????????????????????????????????? | | ?????????????????????????????????????????????????? | | ?????????????????????????????????????????????????? | | ?????????????????????????????????????????????????? | | ?????????????????????????????????????????????????? | | ?????????????????????????????????????????????????? | | ?????????????????????????????????????????????????? | | ?????????????????????????????????????????????????? | | ?????????????????????????????????????????????????? | | ?????????????????????????????????????????????????? | | ?????????????????????????????????????????????????? | | ?????????????????????????????????????????????????? | | ?????????????????????????????????????????????????? | | ?????????????????????????????????????????????????? | | ?????????????????????????????????????????????????? | | ?????????????????????????????????????????????????? | | ?????????????????????????????????????????????????? | | ?????????????????????????????????????????????????? | | ????????????????????#????????????????????????????? | | ????????????????????? ???????????????????????????? | | ?????????????????????# ???????#######?####???????? | | ?????????????????###?# #?????## ### ##??????? | | ?????????????????? ? ????# #??????? | | ??????????????????? ?#a###### #??????? | | ???????????????????? ## @ #### #??????? | | ?????????????????????# ##### # ##??????? | | ?????????????????????## # ## ### #???????? | | ????????????????????####"% # ## ### #???????? | | ???????????????????## = ! #???????? | | ???????????????????# # #####???????? | | ???????????????????# ### # #??????????? | | ???????????????????## ###?### # ####??????????? | | ????????????????????###??????# ### ###??????????? | | ?????????????????????????????# #?# #??????????? | | ?????????????????????????????# #?#### #??????????? | | ?????????????????????????????# #????# #??????????? | | ?????????????????????????????# #????# #??????????? | | ?????????????????????????????# #????# ######?????? | | ????????????????????????????? #????# #?????? | | ?????????????????????????????##?????###### #?????? | | ?????????????????????????????????????????# #?????? | | ???????????????????????????????????????? ????? | | ?????????????????????????????????????? ??? | | ???????????????????????????????????? #?? | | ?????????????????????????????????? """ """ """ #?? | | ????????????????????????????????"" """ """ """ #?? | | ?????????????????????????????????? """ """ """ #?? | | ???????????????????????????????????""" """ """ #?? | | ??????????????????????????????????? ??? ???#?? | +----------------------------------------------------+ Best States ------------- Heat Dissipation 39 Energy Generation 17 Energy Capacity 250 Matter Stores 300 Matter Capacity 300 Sight Range 16 Terrain Scan Density 10 Core Shielding 20 Evasion (%) 40 Recoil Reduction 2 Salvage Targeting 1 Item Schematics ----------------- None Robot Schematics ------------------ None Fabricated ------------ Nothing Alien Tech Used ----------------- None Achievements -------------- None Challenges ------------ None Game ------ Seed SignalBlastSword Manual? 0 Play Time 00:15:47 Cumulative 239.2 hours Start 2021.12.21 @ 16:35:09 End 2021.12.21 @ 16:50:31 Sessions 1 Manual Loads 0 Difficulty Rogue Special Mode None Game No. 321 Rogue 234 Adventurer 87 Explorer 0 Win Type - Total 5 Types 3/0/1/1/0/0/0/0/0 Lore% 70 Gallery% 79 Achievement% 67 Wizard Run 0 Options --------- ASCII 0 Keyboard 1 Movement Numpad Keybinds 0 Fullscreen 1 Font 18/Smallcaps Map View 76x50 Tactical HUD 1 Map Filters NONE Filters NONE Steam 1 RUN: 5da9cddf-b783-4301-8f07-60112f5f9923